Cogmind - Beta 15 @@@ ROGUE MODE // 2025.05.11 @ 23:05:21 Player: 7604 Result: Destroyed by G-47 Trooper with Particle Gun Performance ------------- Evolutions (2) 1000 Regions Visited (7) 1400 Robots Destroyed (116) 580 Value Destroyed (3686) 3686 Prototype IDs (48) 960 Alien Tech Used (0) 0 Bonus (618) 618 TOTAL SCORE: 8244 Bonus ------- High Alert Combat Kills 118 Entered Garrisons 200 Aligned with FarCom 300 Cogmind --------- Core Integrity 0/550 Matter 286/300 Energy 160/160 System Corruption 25% Temperature Cool (18) Movement Rolling (125) Ox3 Location -8/Materials Parts ------- > --- POWER (1) -------- Light Nuclear Core > --- PROPULSION (4) --- Light Treads Wheel Wheel Wheel > --- UTILITY (4) ------ Improved Heat Sink Huge Storage Unit Structural Scanner Hacking Suite > --- WEAPON (2) ------- Lightning Gun Katana > --- INVENTORY (25) --- Aluminum Leg Improved Heat Sink Machine Analyzer Seismic Detector Power Shielding Improved Utility Shielding Light Armor Plating Medium Armor Plating Hardened Light Armor Plating Hacking Suite Hacking Suite System Shield Skeleton Box Trap Extractor (0/4) Lightning Gun Lightning Gun Lightning Gun AWS/Thermal Firepult Minigun Flak Cannon Advanced EMP Blaster Improved Datajack Peak State ------------ > --- POWER ------------ Light Nuclear Core > --- PROPULSION ------- Light Treads Improved Treads Improved Carbon-fiber Leg Improved Carbon-fiber Leg > --- UTILITY ---------- Huge Storage Unit Improved Terrain Scanner Seismic Detector Seismic Detector > --- WEAPON ----------- Cooled Pulse Rifle Cooled Pulse Rifle > --- INVENTORY -------- Ion Engine Ion Engine Improved Carbon-fiber Leg Improved Carbon-fiber Leg Seismic Detector Seismic Detector Hacking Suite Hacking Suite Skeleton Box EM Pulse Gun EM Pulse Gun Cooled Pulse Rifle Cooled Pulse Rifle AWS/Thermal Plasma Cannon Plasma Cannon Plasma Cannon Plasma Cannon Firepult Light Cannon Grenade Launcher Datajack Mining Laser [Rating: 39] Favorites ----------- Power Light Nuclear Core Engine Ion Engine Power Core Light Nuclear Core Propulsion Light Treads Treads Light Treads Leg Aluminum Leg Wheel Wheel Utility Huge Storage Unit Device Seismic Detector Storage Huge Storage Unit Hackware Hacking Suite Protection Improved Utility Shielding Weapon Cooled Pulse Rifle Energy Gun Cooled Pulse Rifle Energy Cannon Beam Cannon Ballistic Gun Light Assault Rifle Launcher Advanced EMP Blaster Special Weapon Mining Laser Slashing Weapon Katana Special Melee Weapon Improved Datajack Build | -11 -10 -10 -10 -9 -8 -8 -8 ------- Run | Yrd Mat Min Exi Min Mat Gar Mat Slots Evolved 4 | . . . . . 4 . . Power . | . . . . . . . . Propulsion 2 | . . . . . 2 . . Utility 2 | . . . . . 2 . . Weapon . | . . . . . . . . Parts Attached 94 | 7 11 6 . 4 38 17 11 Power 12 | 1 1 1 . . 5 3 1 Engine 5 | 1 1 . . . 3 . . Core 7 | . . 1 . . 2 3 1 Reactor . | . . . . . . . . Propulsion 30 | 2 . 3 . 1 13 6 5 Treads 19 | 2 . 1 . 1 11 3 1 Leg 6 | . . . . . 2 3 1 Wheel 5 | . . 2 . . . . 3 Hover . | . . . . . . . . Flight . | . . . . . . . . Utility 25 | 2 4 1 . . 12 4 2 Device 13 | 1 1 1 . . 8 . 2 Storage 4 | 1 2 . . . 1 . . Processor . | . . . . . . . . Hackware 1 | . . . . . . 1 . Protection 7 | . 1 . . . 3 3 . Artifact . | . . . . . . . . Weapon 27 | 2 6 1 . 3 8 4 3 Energy Gun 12 | 1 2 . . 1 4 2 2 Energy Cannon 1 | . 1 . . . . . . Ballistic Gun 7 | 1 1 . . 2 1 2 . Ballistic Cannon . | . . . . . . . . Launcher 3 | . 1 . . . 2 . . Special Weapon 1 | . 1 . . . . . . Impact Weapon . | . . . . . . . . Slashing Weapon 1 | . . . . . 1 . . Piercing Weapon . | . . . . . . . . Special Melee Weapon 2 | . . 1 . . . . 1 Unidentified Prototypes 4 | . . . . . 4 . . Corrupted Parts 3 | . . . . . . . 3 System Corruption 11 | . . . . . . . 11 Parts Lost 25 | . 1 3 . . 6 15 . Power 4 | . . . . . 1 3 . Propulsion 12 | . . 2 . . 3 7 . Utility 5 | . . 1 . . 1 3 . Weapon 4 | . 1 . . . 1 2 . Highest Loss Streak 9 | . 1 3 . . 3 9 . To Critical Strikes . | . . . . . . . . Average Backups 18 | 4 13 19 20 22 22 18 22 Power 1 | . 1 2 3 2 1 . . Propulsion 1 | . . . 1 . 2 . . Utility 6 | 1 5 7 7 7 7 9 10 Weapon 7 | 1 4 6 9 10 10 7 10 Tool/Special . | . . . . . . . . Unused Backups 34 | . . 1 . . 17 . 16 Power 3 | . . . . . 3 . . Propulsion 4 | . . . . . 3 . 1 Utility 12 | . . . . . 2 . 10 Weapon 13 | . . . . . 9 . 4 Tool/Special 2 | . . 1 . . . . 1 Average Slot Usage (%) 96 | . 100 96 85 97 98 86 100 Engine 5 | . 14 . . . 5 1 . Core 5 | . . 13 14 14 3 5 9 Treads 24 | . 28 24 . 15 33 16 5 Leg 4 | . . . . . 2 11 24 Wheel 2 | . . . 28 12 . . 6 Device 13 | . 13 12 14 14 17 2 13 Storage 11 | . 14 14 14 14 9 9 9 Hackware 1 | . . . . . . 1 9 Protection 5 | . . . . . 8 19 4 Energy Gun 9 | . 4 . . . 16 16 9 Energy Cannon 1 | . . 14 . . . . . Ballistic Gun 8 | . 21 14 . 23 . . . Peak Build Rating 39 | 7 9 11 14 17 39 36 35 Average Rating 22 | 6 8 10 12 16 34 29 31 On Entrance 15 | . 7 9 10 14 17 36 33 Naked Turns . | . . . . . . . . Heaviest Build 116 | 12 91 93 87 90 107 116 98 Greatest Support 80 | 40 40 40 26 43 80 80 40 Greatest Overweight (x) 9 | . 2 5 3 3 4 9 8 Average Overweight (x) 1 | . . 2 3 2 1 2 3 Largest Inventory Capacity 25 | 8 25 25 25 25 25 25 25 Average Capacity 22 | 7 19 25 25 25 25 25 25 Most Carried 25 | 6 18 21 24 25 25 25 25 Average Carried 19 | 4 13 19 21 24 24 19 24 Final Capacity 25 | 8 25 25 25 25 25 25 25 Final Carried 25 | 6 17 19 24 24 25 24 25 Class Distribution -------------------- 45% | Mutant 33% | Scavenger-Mutant 20% | Scavenger-Skirmisher Dominant Class ---------------- Mutant | -10/Materials Mutant | -10/Mines Scavenger-Mutant | -10/Exiles Mutant | -9/Mines Scavenger-Skirmisher | -8/Materials Scavenger-Mutant | -8/Garrison Scavenger-Mutant | -8/Materials Resources | -11 -10 -10 -10 -9 -8 -8 -8 ----------- Run | Yrd Mat Min Exi Min Mat Gar Mat Matter Collected 2607 | 296 579 217 . 52 886 260 317 Remotely . | . . . . . . . . Salvage Created 4422 | 178 644 262 . . 2017 736 585 Parts 243 | 27 53 15 . . 88 30 30 Haulers Intercepted 7 | . 2 . . . 5 . . Recyclers Shooed 4 | . 2 . . . 1 . 1 Parts Field Recycled . | . . . . . . . . Retrieved Matter . | . . . . . . . . Parts Self-Destructed . | . . . . . . . . Prevented . | . . . . . . . . Kills | -11 -10 -10 -10 -9 -8 -8 -8 ------- Run | Yrd Mat Min Exi Min Mat Gar Mat Combat Hostiles Destroyed 72 | . 16 4 . . 28 17 7 Melee 5 | . . . . . 1 2 2 Guns 45 | . 11 2 . . 20 9 3 Cannons 3 | . 1 2 . . . . . AOE 14 | . 4 . . . 5 5 . Classes Destroyed 15 | 2 6 1 . . 3 2 1 Worker 7 | 1 . 1 . . 3 . 2 Builder 2 | . 1 . . . . . 1 Tunneler 11 | 9 1 1 . . . . . Hauler 7 | . 2 . . . 5 . . Recycler 7 | . . 1 . . 5 . 1 Mechanic 1 | . . . . . . . 1 Operator 4 | . 2 . . . 1 . 1 Watcher 5 | . 3 . . . 2 . . Swarmer 12 | . 6 . . . 3 3 . Grunt 39 | . 10 4 . . 13 7 5 Duelist 4 | . . . . . 3 1 . Sentry 10 | . . . . . 7 1 2 Specialist 2 | . . . . . 2 . . Hunter 1 | . . . . . . 1 . Programmer 4 | . . . . . . 4 . Best Kill Streak 7 | 3 3 2 . . 6 7 4 Combat Bots Only 7 | . 3 2 . . 5 7 3 Max Kills in Single Turn 2 | 2 2 1 . . 2 2 1 Gunslinging . | . . . . . . . . Exploded 2 | . 2 . . . 2 2 . Melee 1 | . . . . . 1 1 1 Uniques/NPCs Destroyed . | . . . . . . . . Combat | -11 -10 -10 -10 -9 -8 -8 -8 -------- Run | Yrd Mat Min Exi Min Mat Gar Mat Hostile Shots Fired 523 | . 84 45 . . 161 198 35 Missed 160 | . 27 11 . . 56 56 10 Hits 363 | . 57 34 . . 105 142 25 Melee 9 | . . . . . 4 5 . Projectile 354 | . 57 34 . . 101 137 25 AOE 1 | . . . . . . 1 . Critical Strikes 16 | . . 2 . . 5 8 1 Actively Blocked 1 | . . . . . 1 . . Part Disruptions 1 | . . . . . . 1 . Damage Taken 5275 | . 606 482 . . 1581 2228 378 Core 753 | . 85 116 . . 238 236 78 Absorbed by Shields . | . . . . . . . . Redirected to Shielding 47 | . . . . . 9 38 . Ignored by Resistances 128 | . . . . . 80 48 . Regen/Repaired (Parts) 295 | . . . . . 185 . 110 Core Remaining (%) 59 | 100 . . . 19 . . . Volleys Fired 346 | 31 100 32 . . 91 72 20 Largest 2 | 2 2 2 . . 2 2 2 Hottest 120 | 70 120 80 . . 80 120 110 Shots Fired 640 | 62 189 63 . . 176 113 37 Gun 571 | 62 172 31 . . 164 105 37 Cannon 36 | . 4 32 . . . . . Launcher 29 | . 9 . . . 12 8 . Special 4 | . 4 . . . . . . Kinetic 188 | 31 126 31 . . . . . Thermal 379 | 31 50 32 . . 164 102 . Explosive 11 | . 9 . . . 2 . . Electromagnetic 62 | . 4 . . . 10 11 37 Robot Hit Streak 24 | 10 12 11 . . 24 16 11 Robot Miss Streak 9 | 5 9 3 . . 3 3 3 Penetration Max . | . . . . . . . . Secondary Targets 8 | . 3 . . . 2 2 1 Max Gunslinging Chain 1 | . 1 . . . 1 1 1 Shots Hit Robots 396 | 36 98 36 4 . 117 66 39 Core Hits 183 | 16 45 12 . . 70 26 14 Critical Kills . | . . . . . . . . Critical Parts Destroyed . | . . . . . . . . Critical Strikes 11 | 2 3 . . . 3 . 3 Burn 8 | 2 3 . . . 3 . . Corrupt 2 | . . . . . . . 2 Sever 1 | . . . . . . . 1 Melee Attacks 32 | . . . 4 . 3 6 19 Impact . | . . . . . . . . Slashing 28 | . . . . . 3 6 19 Piercing . | . . . . . . . . Sneak Attacks 13 | . . . 4 . . . 9 Combat Hostiles . | . . . . . . . . Follow-up Attacks . | . . . . . . . . Damage Inflicted 8993 | 409 1482 525 . . 3226 2001 1350 Guns 6156 | 405 1065 230 . . 2328 1537 591 Cannons 330 | . 35 295 . . . . . Explosions 1633 | . 382 . . . 864 387 . Melee 822 | . . . . . . 63 759 Ramming 52 | 4 . . . . 34 14 . Kinetic 1119 | 168 721 230 . . . . . Thermal 4740 | 237 333 295 . . 2328 1547 . Explosive 584 | . 382 . . . 202 . . Electromagnetic 1676 | . 46 . . . 662 377 591 Impact . | . . . . . . . . Slashing 822 | . . . . . . 63 759 Piercing . | . . . . . . . . Highest Corruption 25 | . 2 2 2 2 . 14 25 Average Corruption 7 | . 2 2 2 2 . 13 18 Corruption Purged . | . . . . . . . . Corruption Blocked . | . . . . . . . . Effects 140 | . 30 17 3 2 . 48 40 Message Errors 31 | . 7 3 1 . . 11 9 Matter Fused 39 | . 11 7 1 1 . 7 12 Heat Flow Errors 12 | . 4 1 . . . 5 2 Energy Discharges 16 | . . 4 1 . . 5 6 Parts Rejected 1 | . . . . . . . 1 Parts Fused 2 | . 1 . . 1 . . . Data Loss (minor) 14 | . 1 . . . . 8 5 Data Loss (major) 9 | . 4 1 . . . 3 1 Misfires 5 | . 1 . . . . 4 . Alerts 2 | . . . . . . 1 1 Misdirections 1 | . . . . . . 1 . Weapon Failures 8 | . 1 1 . . . 3 3 Overload Shots 17 | . . . . . 1 16 . Overflow Damage 233 | . . . . . 33 19 181 Projectiles . | . . . . . . . . Explosions 52 | . . . . . 33 19 . Melee 181 | . . . . . . . 181 Knockbacks . | . . . . . . . . Impact . | . . . . . . . . Kinetic . | . . . . . . . . Secondary . | . . . . . . . . Self-Inflicted Damage 107 | . 15 . . . 75 17 . Shots 6 | . 1 . . . 4 1 . Rammed 5 | 1 . . . . 2 2 . Targets Rammed 8 | 2 . . . . 4 2 . Kicked . | . . . . . . . . Crushed 3 | 1 . . . . 2 . . Highest Temperature 282 | 80 266 258 . . 27 224 282 Average Temperature 60 | 29 52 91 . . 9 61 91 Received Heat Transfer 1941 | . 213 312 . . 648 561 207 Siege Activations . | . . . . . . . . Martial Activations . | . . . . . . . . Shielding Activations . | . . . . . . . . Robots Disrupted . | . . . . . . . . Combat Hostiles . | . . . . . . . . Robots Corrupted 5 | . . . . . 2 1 2 Combat Hostiles 5 | . . . . . 2 1 2 Parts Fried 10 | . . . . . 7 1 2 Impact Corruptions . | . . . . . . . . Robots Melted . | . . . . . . . . Combat Hostiles . | . . . . . . . . Parts Melted 19 | . . . . . 9 10 . Heat Transferred 9833 | 851 1184 629 . . 4712 2457 . Parts Sabotaged . | . . . . . . . . Parts Stolen . | . . . . . . . . Parts Stripped . | . . . . . . . . Power Chain Reactions 1 | . . . . . . 1 . Alert | -11 -10 -10 -10 -9 -8 -8 -8 ------- Run | Yrd Mat Min Exi Min Mat Gar Mat Maximum Alert Level 2 | . . . . . 2 2 1 Low Security (%) 73 | 100 100 100 . 100 71 . 49 Level 1 14 | . . . . . 22 17 50 Level 2 12 | . . . . . 5 82 . Level 3 . | . . . . . . . . Level 4 . | . . . . . . . . Level 5 . | . . . . . . . . High Security . | . . . . . . . . Max Security . | . . . . . . . . Peak Influence 679 | 10 143 104 . . 442 679 330 Initial 330 | . . 54 . . . 208 330 Average 138 | . 32 10 . . 143 489 212 Influence Increases 2654 | 50 660 115 . . 975 621 233 Destroy 0b10 Robot/C 1440 | . 320 80 . . 560 340 140 Destroy 0b10 Robot/NC 220 | 50 45 15 . . 80 . 30 Destroy Leader 304 | . 90 20 . . 154 10 30 Successful Hack 86 | . 24 . . . 46 14 2 Select Force Hacks 60 | . 60 . . . . . . Disable Machine 120 | . 45 . . . 60 . 15 Anti-Garrison Action 200 | . . . . . . 200 . Destroy Structure 119 | . 46 . . . 15 57 1 Lose Combat Pursuer 105 | . 30 . . . 60 . 15 Influence Decreases 2501 | 50 521 254 . . 655 262 759 Entered New Map 546 | . . 85 . . . 112 349 Time Decay 1595 | 50 511 159 . . 465 . 410 Lost Part 210 | . 10 10 . . 40 150 . Purge Threat 150 | . . . . . 150 . . Squads Dispatched 9 | . 4 . . . 3 . 2 Investigation 3 | . 2 . . . 1 . . Extermination . | . . . . . . . . Reinforcement 6 | . 2 . . . 2 . 2 Assault . | . . . . . . . . Garrison . | . . . . . . . . Intercept . | . . . . . . . . Searches Triggered . | . . . . . . . . Construction Impeded . | . . . . . . . . Haulers Reinforced . | . . . . . . . . Active Scanning Responses . | . . . . . . . . Cargo Convoy Interrupts . | . . . . . . . . Stealth | -11 -10 -10 -10 -9 -8 -8 -8 --------- Run | Yrd Mat Min Exi Min Mat Gar Mat Distress Signals 10 | . . . . . 9 . 1 Communications Jammed . | . . . . . . . . Distress Signals . | . . . . . . . . Times Spotted 128 | . 38 4 . . 50 18 18 Peak Tracking Total 6 | . 5 2 . . 5 6 4 Tactical Retreats 7 | . 2 . . . 4 . 1 Traps | -11 -10 -10 -10 -9 -8 -8 -8 ------- Run | Yrd Mat Min Exi Min Mat Gar Mat Traps Triggered 7 | . 1 . . . . 6 . Indirectly 4 | . . . . . . 4 . Trap Hack Attempts . | . . . . . . . . Triggered . | . . . . . . . . Disarmed . | . . . . . . . . Reprogrammed . | . . . . . . . . Reused . | . . . . . . . . Traps Extracted . | . . . . . . . . Installed . | . . . . . . . . Triggered . | . . . . . . . . Machines | -11 -10 -10 -10 -9 -8 -8 -8 ---------- Run | Yrd Mat Min Exi Min Mat Gar Mat Machines Disabled 11 | . 3 . . . 4 3 1 Max in Single Turn 3 | . 2 . . . 3 1 1 Garrison Relay 5 | . . . . . . 5 . Machines Repaired . | . . . . . . . . Machines Dismantled . | . . . . . . . . Machines Sabotaged . | . . . . . . . . Overloaded Fab Kills . | . . . . . . . . Hacking | -11 -10 -10 -10 -9 -8 -8 -8 --------- Run | Yrd Mat Min Exi Min Mat Gar Mat Machines Accessed 25 | . 7 . 2 . 13 1 2 Terminals 14 | . 5 . . . 7 1 1 Fabricators . | . . . . . . . . Repair Stations 2 | . . . . . 1 . 1 Recycling Units 4 | . 2 . . . 2 . . Scanalyzers 2 | . . . . . 2 . . Garrison Access 1 | . . . . . 1 . . Total Hacks 70 | . 23 . 2 . 33 2 10 Successful 44 | . 16 . 2 . 21 1 4 Failed 25 | . 7 . . . 11 1 6 Catastrophic 5 | . 1 . . . 2 1 1 Database Lockouts 1 | . . . . . 1 . . Manual 36 | . 17 . 1 . 14 1 3 Terminals 39 | . 17 . . . 17 2 3 Fabricators . | . . . . . . . . Repair Stations 11 | . . . . . 4 . 7 Recycling Units 8 | . 6 . . . 2 . . Scanalyzers 6 | . . . . . 6 . . Garrison Access 4 | . . . . . 4 . . Terminal Hacks 14 | . 5 . 2 . 6 1 . Record 1 | . . . 1 . . . . Part Schematic 2 | . 1 . . . 1 . . Robot Analysis 1 | . 1 . . . . . . Prototype ID Bank 4 | . 2 . . . 2 . . Emergency Access Points 1 | . . . . . . 1 . Terminal Index 1 | . . . . . 1 . . Unreport Threat 1 | . . . . . 1 . . Locate Traps 1 | . 1 . . . . . . Hauler Manifests 1 | . . . . . 1 . . Proto ID Catalog 1 | . . . 1 . . . . Fabricator Hacks . | . . . . . . . . Repair Station Hacks 8 | . . . . . 4 . 4 Scan Component 4 | . . . . . 2 . 2 Repair 4 | . . . . . 2 . 2 Recycling Unit Hacks 4 | . 3 . . . 1 . . Retrieve Components 4 | . 3 . . . 1 . . Scanalyzer 4 | . . . . . 4 . . Insert Component 2 | . . . . . 2 . . Analyze 2 | . . . . . 2 . . Garrison Access Hacks 1 | . . . . . 1 . . Unlock Access 1 | . . . . . 1 . . Unauthorized Hacks 13 | . 8 . . . 5 . . Terminals 11 | . 6 . . . 5 . . Botnet 2 | . 1 . . . 1 . . Operators 1 | . 1 . . . . . . Skim 8 | . 4 . . . 4 . . Fabricators . | . . . . . . . . Repair Stations . | . . . . . . . . Recycling Units 2 | . 2 . . . . . . Tunnel 2 | . 2 . . . . . . Scanalyzers . | . . . . . . . . Garrison Access . | . . . . . . . . Data Cores Recovered . | . . . . . . . . Used . | . . . . . . . . Hacking Detections 21 | . 6 . . . 12 1 2 Full Trace Events 1 | . . . . . 1 . . Feedback Events . | . . . . . . . . Feedback Blocked . | . . . . . . . . Robot Schematics Acquired . | . . . . . . . . Robots Built . | . . . . . . . . Authchips . | . . . . . . . . Time . | . . . . . . . . Total Robot Build Rating . | . . . . . . . . Part Schematics Acquired 4 | . 1 . . . 3 . . Parts Built . | . . . . . . . . Authchips . | . . . . . . . . Time . | . . . . . . . . Total Part Build Rating . | . . . . . . . . Parts Repaired 4 | . . . . . 2 . 2 Time 172 | . . . . . 108 . 64 Parts Recycled . | . . . . . . . . Recycled Matter . | . . . . . . . . Retrieved Matter . | . . . . . . . . Retrieved Components 13 | . 10 . . . 3 . . Parts Scanalyzed 2 | . . . . . 2 . . Part Schematics Acquired 2 | . . . . . 2 . . Parts Damaged . | . . . . . . . . Bothacking | -11 -10 -10 -10 -9 -8 -8 -8 ------------ Run | Yrd Mat Min Exi Min Mat Gar Mat Used RIF Installer . | . . . . . . . . Robots Hacked 4 | . . . 4 . . . . Non-combat 3 | . . . 3 . . . . Combat 1 | . . . 1 . . . . Robot Hacks Applied 4 | . . . 4 . . . . parse_system 4 | . . . 4 . . . . Relay Couplers Released 20 | . . . . . . 20 . Machine Destruction 20 | . . . . . . 20 . Fabnet Peak Effective % . | . . . . . . . . Robots Rewired . | . . . . . . . . Allies Hacked . | . . . . . . . . Hacks Repelled . | . . . . . . . . Allies | -11 -10 -10 -10 -9 -8 -8 -8 -------- Run | Yrd Mat Min Exi Min Mat Gar Mat Total Allies . | . . . . . . . . Largest Group . | . . . . . . . . Highest-Rated Group . | . . . . . . . . Highest-Rated Ally . | . . . . . . . . Initial Warlord ECA Mod 7 | . . . . . . . 7 Total Orders . | . . . . . . . . Ally Attacks . | . . . . . . . . Total Damage . | . . . . . . . . Kills . | . . . . . . . . Allies Corrupted . | . . . . . . . . Allies Melted . | . . . . . . . . Intel | -11 -10 -10 -10 -9 -8 -8 -8 ------- Run | Yrd Mat Min Exi Min Mat Gar Mat Active Infowar (turns) 7778 | 199 2475 1167 323 281 2360 271 702 Terrain 2230 | . . . . . 2230 . . Structural 702 | . . . . . . . 702 Traps 1 | . . . . . 1 . . Seismic 5858 | 199 2475 1167 323 281 1142 271 . Robot Analysis Total 1 | . 1 . . . . . . Derelict Logs Recovered 2 | . . 2 . . . . . Drone Launches . | . . . . . . . . Drone Recoveries . | . . . . . . . . Exploration | -11 -10 -10 -10 -9 -8 -8 -8 ------------- Run | Yrd Mat Min Exi Min Mat Gar Mat Turns Passed 10685 | 606 2501 1271 323 281 3426 1295 982 Spaces Moved 3639 | 320 820 364 233 132 1156 308 306 Core 10 | 10 . . . . . . . Treads 2807 | 310 820 326 . 49 1156 146 . Legs 327 | . . . . . . 162 165 Wheels 495 | . . 38 233 83 . . 141 Hover . | . . . . . . . . Flight . | . . . . . . . . Fastest Speed 50 | 50 160 135 135 135 240 240 125 Average Speed 238 | 156 239 314 135 203 244 317 224 Slowest Speed 750 | 160 320 480 135 320 480 750 330 Overloaded Moves . | . . . . . . . . Propulsion Burnouts . | . . . . . . . . Robots Hopped . | . . . . . . . . Potential Cave-ins . | . . . . . . . . Cave-ins Triggered . | . . . . . . . . Exploration Rate (%) 49 | 6 95 51 64 37 74 46 21 Regions Visited 7 Branch Regions 3 Pre-discovered Areas 3 | . 2 . 1 . . . . Known Exits Taken 1 | . . . . . 1 . . Unknown Exits Taken 5 | 1 1 1 1 1 . . . Scrap Searched 4 | . . 2 . 2 . . . Spaces Dug 16 | . 4 . . . 10 1 1 Terrain Destroyed 79 | . 56 . . . 15 7 1 Melee 5 | . . . . . 3 1 1 Projectile 8 | . 4 . . . . 4 . AOE 66 | . 52 . . . 12 2 . Terrain Rammed . | . . . . . . . . Walls Destroyed . | . . . . . . . . Machines Disabled . | . . . . . . . . Actions | -11 -10 -10 -10 -9 -8 -8 -8 --------- Run | Yrd Mat Min Exi Min Mat Gar Mat Total 4948 | 365 1169 426 239 148 1573 494 534 Wait 602 | . 213 17 . 5 164 61 142 Move 3633 | 319 819 363 232 131 1156 307 306 Hop . | . . . . . . . . Pick Up 76 | 6 11 2 3 1 35 6 12 Fast Attach 52 | 7 1 2 . 4 21 9 8 Attach 26 | . 1 3 . 1 9 11 1 Detach 16 | . . 3 . 2 5 4 2 Swap 77 | . 20 3 . . 34 11 9 Drop 75 | . 4 1 . 4 51 . 15 Fire 346 | 31 100 32 . . 91 72 20 Melee 32 | . . . 4 . 3 6 19 Ram . | . . . . . . . . Kick . | . . . . . . . . Crush 8 | 2 . . . . 4 2 . Escape Stasis 5 | . . . . . . 5 . Rewire . | . . . . . . . . Trap . | . . . . . . . . Miscellaneous . | . . . . . . . . Route ------- -11/Scrapyard -10/Materials (discovered 4 exits: [*Mat x3] / [*Min]) -10/Mines (discovered 2 exits: [*Mat] / *Exi) -10/Exiles -9/Mines (discovered 2 exits: *Mat x2) -8/Materials (discovered 5 exits: *Fac x3 / *Sto / Gar) -8/Garrison -8/Materials (discovered 1 exit: *Sto) History --------- Turn | Location | Event 4 | -11/Scrapyard | Discovered new exit (range 16) 607 | -11/Scrapyard | Entered Materials 608 | -10/Materials | Build established: Mutant 1071 | -10/Materials | Discovered new exit (range 16) 1348 | -10/Materials | Discovered new exit (range 13) 1489 | -10/Materials | Discovered new exit (range 6) 2175 | -10/Materials | Discovered new exit (range 15) 3108 | -10/Materials | Entered Mines 3198 | -10/Mines | Learned Materials emergency access door positions 3364 | -10/Mines | Discovered new exit (range 7) 3641 | -10/Mines | Learned 4 Materials zone layouts 4002 | -10/Mines | Deemed a non-threat by the Exiles lab entrance 4002 | -10/Mines | Discovered new exit (range 5) 4098 | -10/Mines | Core integrity fell below 50% 4153 | -10/Mines | Core integrity fell below 20% 4175 | -10/Mines | Lost 3 parts (2n1u) 4379 | -10/Mines | Entered Exiles 4411 | -10/Exiles | Met 8R-AWN 4435 | -10/Exiles | Met EX-HEX 4477 | -10/Exiles | Met EX-BIN 4493 | -10/Exiles | Aligned with FarCom system 4495 | -10/Exiles | Given EX-Vault access code 4526 | -10/Exiles | Opened EX-Vault 4535 | -10/Exiles | Found AWS/Thermal 4538 | -10/Exiles | Found Firepult 4544 | -10/Exiles | Found Skeleton Box 4571 | -10/Exiles | Warned to stay clear of 0b10 Research branches 4610 | -10/Exiles | Met EX-DEC 4623 | -10/Exiles | Build established: Scavenger-Mutant 4644 | -10/Exiles | Learned location of Zion (-6) 4691 | -10/Exiles | Discovered new exit (range 10) 4702 | -10/Exiles | Stole three prototypes: Skeleton Box, AWS/Thermal, Firepult 4702 | -10/Exiles | Entered Mines 4721 | -9/Mines | Met a Derelict bent on vengeance 4878 | -9/Mines | Found a hidden stash of uninstalled traps 4878 | -9/Mines | Discovered new exit (range 12) 4948 | -9/Mines | Discovered new exit (range 12) 4968 | -9/Mines | Assembled infested the area 4973 | -9/Mines | Assisted by a Guerilla fighting off Assembled 4983 | -9/Mines | Entered Materials 4983 | -8/Materials | Evolved 4 slots: Propulsion x2, Utility x2 4984 | -8/Materials | Identified exit to Storage 4984 | -8/Materials | Identified exit to Factory 5294 | -8/Materials | Build established: Scavenger-Skirmisher 5551 | -8/Materials | Discovered exit to Factory (range 4) 5918 | -8/Materials | Central database locked down 6202 | -8/Materials | Lost 3 parts (1p1u1w) 6538 | -8/Materials | Discovered exit to Factory (range 7) 8043 | -8/Materials | Build established: Scavenger-Mutant 8061 | -8/Materials | Repaired Reflective Plating 8143 | -8/Materials | Repaired Cld. Pulse Rifle 8409 | -8/Materials | Identified exit to Garrison 8409 | -8/Materials | Entered Garrison 8437 | -8/Garrison | Garrison Relay disabled 8437 | -8/Garrison | Garrison Relay disabled 8438 | -8/Garrison | Garrison Relay disabled 8460 | -8/Garrison | System corruption reached 10% 8470 | -8/Garrison | Core integrity fell below 50% 8509 | -8/Garrison | Garrison Relay disabled 8521 | -8/Garrison | Lost 3 parts (1n1u1w) 8634 | -8/Garrison | Triggered checkpoint 8684 | -8/Garrison | Destroyed 7 combat bots 8712 | -8/Garrison | Core integrity fell below 20% 8730 | -8/Garrison | Lost 9 parts (2p5n1u1w) 8781 | -8/Garrison | Triggered checkpoint 8865 | -8/Garrison | Triggered checkpoint 9648 | -8/Garrison | Discovered new exit (range 14) 9704 | -8/Garrison | Entered Materials 10077 | -8/Materials | Repaired Lgt. Armor Plating 10187 | -8/Materials | Repaired Imp. Utility Shielding 10397 | -8/Materials | Discovered exit to Storage (range 13) 10686 | -8/Materials | Destroyed by G-47 Trooper with Particle Gun Last Messages --------------- 10581_ Dropped Aluminum Leg. 10581_ Acquired Corrupted Wheel. 10581_ Integrated Corrupted Wheel (+2). 10581_ Complication: Lgt. Treads rejected. 10581_ Complication: Wheel rejected. 10583_ Acquired Lgt. Treads. 10586_ Acquired Wheel. 10597_ NRU ,#D#WBQQV%#GKVXRYZDMJCW| 10612_ W>YI
X7FS2N 10627_ System corrupted: Lgt. Nuclear Core rejected. 10627_ Acquired Lgt. Nuclear Core. 10632_ Critical hit (Burn: +37). 10639_ G-47 Trooper destroyed. 10642_ System corrupted: IFF burst signal emitted. 10642_ Acquired 44 matter. 10643_ Sneak attack on A-02 Transporter. 10643_ A-02 Transporter Lgt. Treads severed. 10677_ System corrupted: Energy discharge (-46). Map ----- +----------------------------------------------------+ | ?????????????????????????????????????????????????? | | ?????????????????????????????????????????????????? | | ?????????????????????????????????????????????????? | | ?????????????????????????????????????????????????? | | ?????????????????????????????????????????????????? | | ?????????????????????????????????????????????????? | | ?????????????????????????????????????????????????? | | ?????????????????????????????????????????????????? | | ?????????????????????????????????????????????????? | | ?????????????????????????????????????????????????? | | ?????????????????????????????????????????????????? | | ???????????????????????????"?????????????????????? | | ???#######????????????????? ?????????????????????? | | #################?????????? ?????????????????????? | | ##### #########?????????? ?????????????????????? | | > ## ##?????????? ?????????????????????? | | ##### ## / ##????????## ##???????????????????? | | ###### ### ############ ##???????????????????? | | ###### ### ############ ##???????????????????? | | =!+ ### ## # ##???????????????????? | | ""*[%# ### ##? # ##???????????????????? | | "S ==# ### ## """ """ # ##???????????????????? | | "% # ### ## """ """ # ##???????????????????? | | # ### ## """ """g#g##???????????????????? | | ###### ### ## ; ##???????????????????? | | ###### ### ## @# ##???????????????????? | | ?? ### ### ## # ##???????????????????? | | ?? # ###+########+##### ##???????????????????? | | ?? # w #### ##???????????????????? | | ?? + T = C ##???????????????????? | | ?? # !% ^ #######???????????????????? | | ?? # ############+########???????????????????? | | ?? ## ########## ##?????????????????????? | | ?? ## # ????? # """ ##?????????????????????? | | ???## # ?????? # / """ ##?????????????????????? | | ???## ?????? # =""" ##?????????????????????? | | ???## # ?????? # ! [= ##?????????????????????? | | ???## ##??????## ! """ ##?????????????????????? | | ???## ##??????## """ ##?????????????????????? | | ???# #??????## """ ##?????????????????????? | | ?? # ???????##! ! ##?????????????????????? | | ?? + ???????############?????????????????????? | | ?? # ????????############?????????????????????? | | ?????????????????????????????????????????????????? | | ?????????????????????????????????????????????????? | | ?????????????????????????????????????????????????? | | ?????????????????????????????????????????????????? | | ?????????????????????????????????????????????????? | | ?????????????????????????????????????????????????? | | ?????????????????????????????????????????????????? | +----------------------------------------------------+ Best States ------------- Heat Dissipation 45 Energy Generation 14 Energy Capacity 280 Matter Stores 300 Matter Capacity 300 Sight Range 16 Terrain Scan Range 16 Terrain Scan Density 10 Armor Coverage 375 Resistance: KI 20 Resistance: TH 10 Utility Shielding 66 Evasion (%) 40 Recoil Reduction 4 Offensive Hacking 10 Item Schematics ----------------- ECM Suite | -10/Materials | Hacked Plasma Cutter | -8/Materials | Hacked Cld. Pulse Rifle | -8/Materials | Scanalyzed Adv. EMP Blaster | -8/Materials | Scanalyzed Robot Schematics ------------------ None Fabricated ------------ Nothing Repaired ---------- Reflective Plating | 5% | -8/Materials Cld. Pulse Rifle | 40% | -8/Materials Lgt. Armor Plating | 30% | -8/Materials Imp. Utility Shielding | 53% | -8/Materials Alien Tech Used ----------------- None Achievements -------------- None Challenges ------------ None Game ------ Seed PlasmaLightMount Manual? 0 Play Time 01:08:33 Cumulative 369.9 hours Start 2025.05.11 @ 21:55:02 End 2025.05.11 @ 23:05:21 Sessions 1 Manual Loads 0 Difficulty Rogue Special Mode None Game No. 180 Rogue 117 Adventurer 63 Explorer 0 Win Type - Total 8 Types 7/0/0/1/0/0/0/0/0/0 Lore% 84 Gallery% 75 Achievement% 63 Wizard Run 0 Options --------- Layout 2 ASCII 0 Keyboard 1 Movement Numpad Keybinds 0 Fullscreen 1 Font 24/Terminus Map View 50x44 Zoom Use 0% Tactical HUD 1 Map Filters NONE Filters NONE Steam 1 RUN: cde04e7f-a87e-431b-9190-c66d2a7218e8